fUSD/lending_fUSD_20251226
["ID","MTS","AMOUNT","RATE_DAILY","PERIOD"]
[399843023,1766734333938,-150.98,0.000188,2]
[399843024,1766734333948,-150.98,0.000188,2]
[399843025,1766734333958,-150.98,0.000188,2]
[399843026,1766734333967,-150.98,0.000188,2]
[399843027,1766734333977,-150.98,0.000188,2]
[399843028,1766734333987,-150.98,0.000188,2]
[399843029,1766734333996,-150.98,0.000188,2]
[399843030,1766734334006,-150.98,0.000188,2]
[399843031,1766734334016,-150.98,0.000188,2]
[399843032,1766734334026,-150.98,0.000188,2]
[399843033,1766734334035,-150.98,0.000188,2]
[399843034,1766734334045,-150.98,0.000188,2]
[399843035,1766734334055,-150.98,0.000188,2]
[399843036,1766734334065,-150.98,0.000188,2]
[399843037,1766734334075,-150.98,0.000188,2]
[399843038,1766734334086,-150.98,0.000188,2]
[399843039,1766734334096,-150.98,0.000188,2]
[399843040,1766734334106,-150.98,0.000188,2]
[399843041,1766734334116,-150.98,0.000188,2]
[399843042,1766734334126,-150.98,0.000188,2]
[399843043,1766734334139,-150.98,0.000188,2]
[399843044,1766734334150,-150.98,0.000188,2]
[399843045,1766734334161,-150.98,0.000188,2]
[399843046,1766734334171,-150.98,0.000188,2]
[399843047,1766734334182,-150.98,0.000188,2]
[399843048,1766734334192,-150.98,0.000188,2]
[399843049,1766734334204,-150.98,0.000188,2]
[399843050,1766734334214,-150.98,0.000188,2]
[399843051,1766734334224,-150.98,0.000188,2]
[399843052,1766734334235,-150.98,0.000188,2]
[399843053,1766734334246,-305.0,0.000188,2]
[399843054,1766734334257,-151.01865891,0.0001881,2]
[399843055,1766734334268,-346.92554585,0.00018887,2]
[399843056,1766734334278,-151.0,0.00018887,2]
[399843057,1766734334288,-688.49839244,0.00018889,2]
[399843058,1766734334298,-164.85997199,0.000189,2]
[399843059,1766734334308,-3000.0,0.00018904,7]
[399843060,1766734334317,-3000.0,0.00018923,2]
[399843061,1766734334327,-1096.0,0.0001896,2]
[399843062,1766734334336,-701.84296633,0.0001897,2]
[399843063,1766734334347,-224.59309911,0.00018982,2]
[399843064,1766734334357,-1000.0,0.00018996,2]
[399843065,1766734334367,-234179.60509183,0.00019,2]
[399843066,1766734334377,-234179.60509183,0.00019,2]
[399843067,1766734334387,-234179.60509183,0.00019,2]
[399843068,1766734334397,-500.0,0.00019,7]
[399843069,1766734334406,-500.0,0.00019,7]
[399843070,1766734334416,-500.0,0.00019,7]
[399843071,1766734334426,-500.0,0.00019,7]
[399843072,1766734334436,-500.0,0.00019,7]
[399843073,1766734334446,-500.0,0.00019,7]
[399843074,1766734334456,-500.0,0.00019,7]
[399843075,1766734334466,-500.0,0.00019,7]
[399843076,1766734334476,-500.0,0.00019,7]
[399843077,1766734334486,-500.0,0.00019,7]
[399843078,1766734334496,-500.0,0.00019,7]
[399843079,1766734334506,-500.0,0.00019,7]
[399843080,1766734334516,-500.0,0.00019,7]
[399843081,1766734334526,-500.0,0.00019,7]
[399843082,1766734334536,-500.0,0.00019,7]
[399843083,1766734334546,-500.0,0.00019,7]
[399843084,1766734334556,-500.0,0.00019,7]
[399843085,1766734334566,-500.0,0.00019,7]
[399843086,1766734334576,-500.0,0.00019,7]
[399843087,1766734334585,-500.0,0.00019,7]
[399843088,1766734334595,-500.0,0.00019,7]
[399843089,1766734334604,-500.0,0.00019,7]
[399843090,1766734334614,-500.0,0.00019,7]
[399843091,1766734334623,-500.0,0.00019,7]
[399843092,1766734334634,-500.0,0.00019,7]
[399843093,1766734334644,-500.0,0.00019,7]
[399843094,1766734334654,-500.0,0.00019,7]
[399843095,1766734334664,-500.0,0.00019,7]
[399843096,1766734334674,-500.0,0.00019,7]
[399843097,1766734334684,-500.0,0.00019,7]
[399843098,1766734334694,-500.0,0.00019,7]
[399843099,1766734334704,-500.0,0.00019,7]
[399843100,1766734334714,-500.0,0.00019,7]
[399843101,1766734334724,-500.0,0.00019,7]
[399843102,1766734334734,-500.0,0.00019,7]
[399843103,1766734334743,-500.0,0.00019,7]
[399843104,1766734334753,-500.0,0.00019,7]
[399843105,1766734334762,-500.0,0.00019,7]
[399843106,1766734334771,-500.0,0.00019,7]
[399843107,1766734334781,-500.0,0.00019,7]
[399843108,1766734334791,-500.0,0.00019,7]
[399843109,1766734334800,-500.0,0.00019,7]
[399843110,1766734334809,-500.0,0.00019,7]
[399843111,1766734334819,-500.0,0.00019,7]
[399843112,1766734334828,-500.0,0.00019,7]
[399843113,1766734334837,-500.0,0.00019,7]
[399843114,1766734334847,-500.0,0.00019,7]
[399843115,1766734334856,-500.0,0.00019,7]
[399843116,1766734334866,-500.0,0.00019,7]
[399843117,1766734334876,-500.0,0.00019,7]
[399843118,1766734334886,-221.86,0.00019,7]
[399843119,1766734334896,-500.0,0.00019,7]
[399843120,1766734335107,-500.0,0.00019,7]
[399843121,1766734335117,-500.0,0.00019,7]
[399843122,1766734335128,-500.0,0.00019,7]
[399843123,1766734335142,-500.0,0.00019,7]
[399843124,1766734335152,-500.0,0.00019,7]
[399843125,1766734335162,-500.0,0.00019,7]
[399843126,1766734335173,-500.0,0.00019,7]
[399843127,1766734335182,-500.0,0.00019,7]
[399843128,1766734335192,-500.0,0.00019,7]
[399843129,1766734335203,-500.0,0.00019,7]
[399843130,1766734335213,-500.0,0.00019,7]
[399843131,1766734335223,-500.0,0.00019,7]
[399843132,1766734335232,-500.0,0.00019,7]
[399843133,1766734335242,-500.0,0.00019,7]
[399843134,1766734335251,-500.0,0.00019,7]
[399843135,1766734335261,-500.0,0.00019,7]
[399843136,1766734335271,-500.0,0.00019,7]
[399843137,1766734335280,-500.0,0.00019,7]
[399843138,1766734335290,-500.0,0.00019,7]
[399843139,1766734335299,-500.0,0.00019,7]
[399843140,1766734335308,-500.0,0.00019,7]
[399843141,1766734335319,-500.0,0.00019,7]
[399843142,1766734335328,-500.0,0.00019,7]
[399843143,1766734335338,-500.0,0.00019,7]
[399843144,1766734335347,-500.0,0.00019,7]
[399843145,1766734335357,-500.0,0.00019,7]
[399843146,1766734335367,-500.0,0.00019,7]
[399843147,1766734335376,-500.0,0.00019,7]
[399843148,1766734335386,-500.0,0.00019,7]
[399843149,1766734335396,-500.0,0.00019,7]
[399843150,1766734335405,-500.0,0.00019,7]
[399843151,1766734335415,-500.0,0.00019,7]
[399843152,1766734335424,-500.0,0.00019,7]
[399843153,1766734335434,-500.0,0.00019,7]
[399843154,1766734335444,-500.0,0.00019,7]
[399843155,1766734335454,-222.24,0.00019,7]
[399843156,1766734335464,-500.0,0.00019,7]
[399843157,1766734335473,-500.0,0.00019,7]
[399843158,1766734335483,-500.0,0.00019,7]
[399843159,1766734335492,-500.0,0.00019,7]
[399843160,1766734335502,-500.0,0.00019,7]
[399843161,1766734335512,-500.0,0.00019,7]
[399843162,1766734335521,-500.0,0.00019,7]
[399843163,1766734335531,-500.0,0.00019,7]
[399843164,1766734335540,-500.0,0.00019,7]
[399843165,1766734335549,-500.0,0.00019,7]
[399843166,1766734335559,-500.0,0.00019,7]
[399843167,1766734335568,-500.0,0.00019,7]
[399843168,1766734335578,-500.0,0.00019,7]
[399843169,1766734335587,-3590.32716515,0.00019,2]
[399843170,1766734335600,-3590.32716515,0.00019,2]
[399843171,1766734335610,-842.81307625,0.00019,2]
[399843172,1766734335619,-842.81307625,0.00019,2]
[399843173,1766734335629,-300.0,0.00019,2]
[399843174,1766734335639,-1600.0,0.00019069,2]
[399843175,1766734335650,-200.18818921,0.00019082,2]
[399843176,1766734335659,-152.0,0.00019085,9]
[399843177,1766734335669,-171.62,0.00019119,2]
[399843178,1766734335679,-14268.051389,0.00019175,2]
[399843179,1766734335689,-50155.2251706,0.00019175,2]
[399843180,1766734335698,-13185.5528702,0.00019175,2]
[399843181,1766734335707,-153.77118782,0.00019178,2]
[399843182,1766734335717,-3001.50806085,0.00019178,2]
[399843183,1766734335727,-151.0,0.00019178,2]
[399843184,1766734335736,-151.0,0.00019178,2]
[399843185,1766734335746,-151.0,0.00019178,2]
[399843186,1766734335755,-151.0,0.00019178,2]
[399843187,1766734335765,-151.0,0.00019178,2]
[399843188,1766734335775,-151.0,0.00019178,2]
[399843189,1766734335785,-151.0,0.00019178,2]
[399843190,1766734335795,-151.0,0.00019178,2]
[399843191,1766734335804,-151.0,0.00019178,2]
[399843192,1766734335814,-151.0,0.00019178,2]
[399843193,1766734335824,-151.0,0.00019178,2]
[399843194,1766734335833,-151.0,0.00019178,2]
[399843195,1766734335843,-151.0,0.00019178,2]
[399843196,1766734335852,-207.068858,0.00019178,2]
[399843197,1766734335861,-151.0,0.00019178,2]
[399843198,1766734335871,-151.0,0.00019178,2]
[399843199,1766734335880,-151.0,0.00019178,2]
[399843200,1766734335890,-151.0,0.00019178,2]
[399843201,1766734335900,-151.0,0.00019178,2]
[399843202,1766734335909,-151.0,0.00019178,2]
[399843203,1766734335919,-151.0,0.00019178,2]
[399843204,1766734335929,-151.0,0.00019178,2]
[399843205,1766734335939,-151.0,0.00019178,2]
[399843206,1766734335948,-151.0,0.00019178,2]
[399843207,1766734335958,-151.0,0.00019178,2]
[399843208,1766734335968,-151.0,0.00019178,2]
[399843209,1766734335977,-151.0,0.00019178,2]
[399843210,1766734335986,-151.0,0.00019178,2]
[399843211,1766734335995,-151.0,0.00019178,2]
[399843212,1766734336005,-151.0,0.00019178,2]
[399843213,1766734336014,-151.0,0.00019178,2]
[399843214,1766734336024,-151.0,0.00019178,2]
[399843215,1766734336033,-151.0,0.00019178,2]
[399843216,1766734336043,-151.0,0.00019178,2]
[399843217,1766734336053,-151.0,0.00019178,2]
[399843218,1766734336063,-151.0,0.00019178,2]
[399843219,1766734336072,-151.0,0.00019178,2]
[399843220,1766734336082,-151.0,0.00019178,2]
[399843221,1766734336091,-179.105117,0.00019178,2]
[399843222,1766734336101,-683.899748,0.00019178,2]
[399843223,1766734336111,-683.899748,0.00019178,2]
[399843224,1766734336121,-683.899748,0.00019178,2]
[399843225,1766734336131,-683.899748,0.00019178,2]
[399843226,1766734336144,-683.899748,0.00019178,2]
[399843227,1766734336153,-683.899748,0.00019178,2]
[399843228,1766734336163,-683.899748,0.00019178,2]
[399843229,1766734336174,-683.899748,0.00019178,2]
[399843230,1766734336185,-683.899748,0.00019178,2]
[399843231,1766734336194,-683.899748,0.00019178,2]
[399843232,1766734336204,-683.899748,0.00019178,2]
[399843233,1766734336216,-683.899748,0.00019178,2]
[399843234,1766734336225,-683.899748,0.00019178,2]
[399843235,1766734336235,-683.899748,0.00019178,2]
[399843236,1766734336245,-683.899748,0.00019178,2]
[399843237,1766734336254,-683.899748,0.00019178,2]
[399843238,1766734336264,-683.899748,0.00019178,2]
[399843239,1766734336274,-683.899748,0.00019178,2]
[399843240,1766734336284,-683.899748,0.00019178,2]
[399843241,1766734336293,-683.899746,0.00019178,2]
[399843242,1766734336304,-150.0,0.00019178,2]
[399843243,1766734336314,-177.44,0.000193,2]
[399843244,1766734336324,-1036.39649824,0.000194,14]
[399843245,1766734336333,-713.97283296,0.00019437,2]
[399843246,1766734336343,-1000.0,0.00019438,2]
[399843247,1766734336353,-152.0,0.00019445,10]
[399843248,1766734336363,-3500.0,0.00019471,2]
[399843249,1766734336373,-209.07,0.00019555,2]
[399843250,1766734336383,-160.4619499,0.00019625,2]
[399843251,1766734336392,-3183.6325914,0.00019662,2]
[399843252,1766734336402,-11191.1434246,0.00019662,2]
[399843253,1766734336412,-2942.0945235,0.00019662,2]
[399843254,1766734336423,-167.89700519,0.00019717,7]
[399843255,1766734336432,-250.0,0.00019726,2]
[399843256,1766734336458,-152.0,0.00019804,11]
[399843257,1766734336478,-47894.04281258,0.0001995,15]
[399843258,1766734336500,-1099.0,0.00019958,2]
[399843259,1766734336524,-400.0,0.0001997,2]
[399843260,1766734336543,-400.0,0.0001997,2]
[399843261,1766734336565,-400.0,0.0001997,2]
[399843262,1766734336589,-740.38982778,0.00019985,2]
[399843263,1766734336611,-3000.0,0.0002,7]
[399843264,1766734336633,-5570.45453968,0.0002,2]
[399843265,1766734336654,-200.0,0.0002,2]
[399843266,1766734336678,-163.73750199,0.0002,2]
[399843267,1766734336694,-5000.0,0.0002,2]
[399843268,1766734336717,-398.0,0.0002,2]
[399843269,1766734336732,-5350.03789583,0.0002,2]
[399843270,1766734336753,-1528.56970807,0.0002,2]
[399843271,1766734336770,-500.0,0.0002,2]
[399843272,1766734336787,-1343.49108256,0.0002,14]
[399843273,1766734336805,-173.68,0.0002,2]
[399843274,1766734336824,-150.0,0.0002,2]
[399843275,1766734336843,-150.0,0.0002,2]
[399843276,1766734336860,-150.0,0.0002,2]
[399843277,1766734336877,-150.0,0.0002,2]
[399843278,1766734336893,-150.0,0.0002,2]
[399843279,1766734336909,-150.0,0.0002,2]
[399843280,1766734336925,-150.0,0.0002,2]
[399843281,1766734336941,-150.0,0.0002,2]
[399843282,1766734336957,-150.0,0.0002,2]
[399843283,1766734336975,-150.0,0.0002,2]
[399843284,1766734336992,-2000.0,0.0002,2]
[399843285,1766734337009,-150.0,0.0002,2]
[399843286,1766734337026,-1263.0,0.0002,2]
[399843287,1766734337043,-912.0,0.0002,2]
[399843288,1766734337059,-1198.0,0.0002,2]
[399843289,1766734337076,-186.82,0.0002,2]
[399843290,1766734337092,-201.943336,0.0002,2]
[399843291,1766734337107,-1327.0,0.0002,2]
[399843292,1766734337122,-2430.0,0.0002,2]
[399843293,1766734337143,-786.81984526,0.0002,2]
[399843294,1766734337159,-4808.0,0.0002,2]
[399843295,1766734337178,-3459.0,0.0002,2]
[399843296,1766734337194,-500.0,0.00020001,2]
[399843297,1766734337210,-500.0,0.00020002,2]
[399843298,1766734337224,-499.9999,0.00020003,2]
[399843299,1766734337241,-2000.0,0.0002001,2]
[399843300,1766734337258,-4000.0,0.00020019,2]
[399843301,1766734337276,-2000.0,0.0002002,2]
[399843302,1766734337292,-2574.481488,0.0002003,2]
[399843303,1766734337309,-2000.0,0.00020099,2]
[399843304,1766734337325,-2000.0,0.00020099,2]
[399843305,1766734337342,-2000.8223,0.00020099,2]
[399843306,1766734337359,-2000.0,0.00020099,2]
[399843307,1766734337375,-1000.0,0.00020116,2]
[399843308,1766734337392,-152.0,0.00020164,12]
[399843309,1766734337409,-400.0,0.0002017,2]
[399843310,1766734337426,-400.0,0.0002017,2]
[399843311,1766734337442,-400.76442162,0.0002017,2]
[399843312,1766734337457,-1000.0,0.00020187,2]
[399843313,1766734337473,-786.81984526,0.000202,2]
[399843314,1766734337489,-359.76179104,0.00020256,2]
[399843315,1766734337506,-160.01835327,0.00020256,2]
[399843316,1766734337522,-350.0,0.00020274,2]
[399843317,1766734337537,-217.03753509,0.000205,7]
[399843318,1766734337553,-152.0,0.00020523,13]
[399843319,1766734337570,-767.7842514,0.00020533,2]
[399843320,1766734337585,-192.02,0.00020548,2]
[399843321,1766734337602,-378.43362891,0.00020567,2]
[399843322,1766734337618,-171.62,0.00020719,2]
[399843323,1766734337633,-400.0,0.0002077,2]
[399843324,1766734337649,-300.0,0.0002077,2]
[399843325,1766734337665,-1000.0,0.00020795,2]
[399843326,1766734337680,-450.0,0.00020822,2]
[399843327,1766734337695,-152.0,0.00020882,14]
[399843328,1766734337712,-1000.0,0.00020895,2]
[399843329,1766734337726,-177.44,0.000209,2]
[399843330,1766734337744,-1600.0,0.00020976,2]
[399843331,1766734337759,-250.0,0.00021,4]
[399843332,1766734337775,-350.0,0.00021,2]
[399843333,1766734337791,-1099.0,0.00021008,2]
[399843334,1766734337806,-2224.15,0.0002104,2]
[399843335,1766734337822,-475.0,0.00021068,2]
[399843336,1766734337837,-796.19226871,0.00021081,2]
[399843337,1766734337854,-3000.0,0.00021096,7]
[399843338,1766734337869,-2000.0,0.000212,2]
[399843339,1766734337885,-567.3,0.00021224,2]
[399843340,1766734337902,-1635.7,0.00021224,2]
[399843341,1766734337919,-152.0,0.00021242,15]
[399843342,1766734337936,-3152.0,0.0002125,2]
[399843343,1766734337954,-209.07,0.00021274,2]
[399843344,1766734337970,-512.80523327,0.0002137,2]
[399843345,1766734337987,-24713.71414338,0.000215,2]
[399843346,1766734338002,-200.0,0.000216,2]
[399843347,1766734338018,-152.0,0.00021601,16]
[399843348,1766734338034,-373.07297731,0.00021625,2]
[399843349,1766734338051,-825.65138265,0.00021629,2]
[399843350,1766734338066,-674.38,0.00021918,30]
[399843351,1766734338081,-273.682161,0.00021918,2]
[399843352,1766734338097,-273.682161,0.00021918,2]
[399843353,1766734338113,-273.682161,0.00021918,2]
[399843354,1766734338129,-273.682161,0.00021918,2]
[399843355,1766734338148,-273.682161,0.00021918,2]
[399843356,1766734338164,-273.682161,0.00021918,2]
[399843357,1766734338182,-273.682161,0.00021918,2]
[399843358,1766734338200,-273.682161,0.00021918,2]
[399843359,1766734338217,-273.682161,0.00021918,2]
[399843360,1766734338233,-273.682161,0.00021918,2]
[399843361,1766734338249,-273.682161,0.00021918,2]
[399843362,1766734338266,-273.682161,0.00021918,2]
[399843363,1766734338283,-273.682161,0.00021918,2]
[399843364,1766734338298,-273.682161,0.00021918,2]
[399843365,1766734338314,-273.682161,0.00021918,2]
[399843366,1766734338329,-273.682161,0.00021918,2]
[399843367,1766734338345,-273.682161,0.00021918,2]
[399843368,1766734338360,-273.682161,0.00021918,2]
[399843369,1766734338376,-273.682161,0.00021918,2]
[399843370,1766734338392,-273.682159,0.00021918,2]
[399843371,1766734338409,-5000.0,0.00021918,2]
[399843372,1766734338426,-151.0,0.00021918,2]
[399843373,1766734338442,-247.092085,0.00021918,2]
[399843374,1766734338458,-828.15785588,0.00021918,2]
[399843375,1766734338474,-173.37724499,0.00021918,2]
[399843376,1766734338490,-164.0,0.00021918,2]
[399843377,1766734338507,-164.0,0.00021918,2]
[399843378,1766734338521,-164.0,0.00021918,2]
[399843379,1766734338537,-1000.0,0.00021918,2]
[399843380,1766734338553,-154.0,0.00021918,2]
[399843381,1766734338569,-154.0,0.00021918,2]
[399843382,1766734338586,-154.0,0.00021918,2]
[399843383,1766734338602,-154.0,0.00021918,2]
[399843384,1766734338617,-154.0,0.00021918,2]
[399843385,1766734338634,-154.0,0.00021918,2]
[399843386,1766734338651,-223.09239029,0.00021918,2]
[399843387,1766734338668,-154.0,0.00021918,2]
[399843388,1766734338683,-500.0,0.00021918,2]
[399843389,1766734338701,-158.2879894,0.00021918,2]
[399843390,1766734338717,-500.0,0.00021918,2]
[399843391,1766734339085,-500.0,0.00021918,2]
[399843392,1766734339112,-500.0,0.00021918,2]
[399843393,1766734339123,-500.0,0.00021918,2]
[399843394,1766734339137,-500.0,0.00021918,2]
[399843395,1766734339147,-500.0,0.00021918,2]
[399843396,1766734339157,-500.0,0.00021918,2]
[399843397,1766734339167,-500.0,0.00021918,2]
[399843398,1766734339178,-500.0,0.00021918,2]
[399843399,1766734339188,-500.0,0.00021918,2]
[399843400,1766734339197,-500.0,0.00021918,2]
[399843401,1766734339210,-500.0,0.00021918,2]
[399843402,1766734339219,-500.0,0.00021918,2]
[399843403,1766734339229,-500.0,0.00021918,2]
[399843404,1766734339239,-500.0,0.00021918,2]
[399843405,1766734339249,-500.0,0.00021918,2]
[399843406,1766734339259,-500.0,0.00021918,2]
[399843407,1766734339270,-500.0,0.00021918,2]
[399843408,1766734339280,-500.0,0.00021918,2]
[399843409,1766734339290,-500.0,0.00021918,2]
[399843410,1766734339299,-500.0,0.00021918,2]
[399843411,1766734339309,-500.0,0.00021918,2]
[399843412,1766734339319,-500.0,0.00021918,2]
[399843413,1766734339329,-500.0,0.00021918,2]
[399843414,1766734339340,-500.0,0.00021918,2]
[399843415,1766734339351,-500.0,0.00021918,2]
[399843416,1766734339360,-187.08939189,0.00021918,2]
[399843417,1766734339370,-500.0,0.00021918,2]
[399843418,1766734339380,-534.98986224,0.00021945,2]
[399843419,1766734339390,-152.0,0.00021961,17]
[399843420,1766734339400,-503.63097723,0.00021999,2]
[399843421,1766734339411,-300.72,0.00022,7]
[399843422,1766734339420,-4131.654066,0.00022,2]
[399843423,1766734339430,-45052.66613625,0.00022,2]
[399843424,1766734339440,-163.53,0.00022,2]
[399843425,1766734339450,-163.29,0.00022,2]
[399843426,1766734339459,-1968.0,0.00022,2]
[399843427,1766734339469,-212.42,0.00022,2]
[399843428,1766734339479,-2300.43,0.00022045,2]
[399843429,1766734339488,-1099.0,0.00022058,2]
[399843430,1766734339499,-492.9127444,0.000221,2]
[399843431,1766734339508,-239.51092176,0.0002211,2]
[399843432,1766734339518,-1000.0,0.00022192,2]
[399843433,1766734339528,-3000.0,0.00022192,7]
[399843434,1766734339538,-152.0,0.0002232,18]
[399843435,1766734339549,-170.77539009,0.0002232,5]
[399843436,1766734339559,-422.0,0.0002243,10]
[399843437,1766734339569,-1000.0,0.00022466,2]
[399843438,1766734339579,-850.46,0.000225,7]
[399843439,1766734339589,-35389.58094345,0.000225,2]
[399843440,1766734339599,-209.78967487,0.000226,90]
[399843441,1766734339609,-161.45,0.000226,4]
[399843442,1766734339619,-521.52249409,0.0002271,2]
[399843443,1766734339628,-1000.0,0.0002274,2]
[399843444,1766734339638,-1000.0,0.00022795,2]
[399843445,1766734339648,-1600.0,0.00022883,2]
[399843446,1766734339658,-386.87667747,0.00022994,2]
[399843447,1766734339667,-1089.53285514,0.00023,2]
[399843448,1766734339677,-633.37580304,0.00023,7]
[399843449,1766734339687,-150.0,0.00023,2]
[399843450,1766734339696,-150.0,0.00023,2]
[399843451,1766734339705,-150.0,0.00023,2]
[399843452,1766734339715,-150.0,0.00023,2]
[399843453,1766734339724,-150.0,0.00023,2]
[399843454,1766734339733,-1263.0,0.00023,2]
[399843455,1766734339743,-912.0,0.00023,2]
[399843456,1766734339753,-1198.0,0.00023,2]
[399843457,1766734339762,-168.0,0.00023,7]
[399843458,1766734339771,-1327.0,0.00023,2]
[399843459,1766734339781,-2430.0,0.00023,2]
[399843460,1766734339791,-400.0,0.00023,2]
[399843461,1766734339801,-4808.0,0.00023,2]
[399843462,1766734339810,-3459.0,0.00023,2]
[399843463,1766734339819,-1000.0,0.00023014,2]
[399843464,1766734339829,-1099.0,0.00023161,2]
[399843465,1766734339838,-177.44,0.00023183,2]
[399843466,1766734339848,-1000.0,0.00023288,2]
[399843467,1766734339858,-3000.0,0.00023288,7]
[399843468,1766734339868,-1000.0,0.00023562,2]
[399843469,1766734339878,-2000.0,0.00023587,3]
[399843470,1766734339888,-174.23,0.00023629,2]
[399843471,1766734339898,-177.44,0.00023865,2]
[399843472,1766734339908,-1230.95376223,0.00024,2]
[399843473,1766734339917,-714.51873489,0.00024,2]
[399843474,1766734339927,-1640.0,0.00024,2]
[399843475,1766734339936,-168.0,0.00024164,7]
[399843476,1766734339948,-174.22265526,0.00024265,2]
[399843477,1766734339957,-1099.0,0.00024319,2]
[399843478,1766734339967,-401.19111454,0.00024363,2]
[399843479,1766734339976,-3000.0,0.00024384,7]
[399843480,1766734339986,-2144.61,0.000245,14]
[399843481,1766734339996,-170.82,0.00024548,2]
[399843482,1766734340006,-212.42,0.00024614,2]
[399843483,1766734340015,-157.0,0.00024658,2]
[399843484,1766734340025,-157.0,0.00024658,2]
[399843485,1766734340035,-157.0,0.00024658,2]
[399843486,1766734340045,-162.67403805,0.00024658,2]
[399843487,1766734340055,-157.0,0.00024658,2]
[399843488,1766734340064,-157.0,0.00024658,2]
[399843489,1766734340074,-157.0,0.00024658,2]
[399843490,1766734340083,-684.07,0.00024658,2]
[399843491,1766734340093,-1000.0,0.00024658,2]
[399843492,1766734340103,-151.987876,0.00024658,2]
[399843493,1766734340112,-151.0,0.00024658,2]
[399843494,1766734340121,-151.0,0.00024658,2]
[399843495,1766734340132,-177.345679,0.00024658,2]
[399843496,1766734340143,-151.0,0.00024658,2]
[399843497,1766734340153,-152.318168,0.00024658,2]
[399843498,1766734340162,-151.0,0.00024658,2]
[399843499,1766734340172,-151.0,0.00024658,2]
[399843500,1766734340182,-151.0,0.00024658,2]
[399843501,1766734340191,-151.0,0.00024658,2]
[399843502,1766734340201,-151.0,0.00024658,2]
[399843503,1766734340213,-255.196476,0.00024658,2]
[399843504,1766734340222,-215.37429974,0.00024658,6]
[399843505,1766734340232,-300.72,0.000247,7]
[399843506,1766734340242,-539759.646828,0.000248,3]
[399843507,1766734340252,-3332.27018445,0.0002484,2]
[399843508,1766734340261,-155.32,0.00024846,2]
[399843509,1766734340271,-2000.0,0.000249,2]
[399843510,1766734340280,-602715.770219,0.000249,3]
[399843511,1766734340290,-169.9398052,0.00025,5]
[399843512,1766734340300,-771.57996398,0.00025,14]
[399843513,1766734340309,-172.7237689,0.00025,2]
[399843514,1766734340319,-150.0,0.00025,2]
[399843515,1766734340329,-206.42669599,0.00025,2]
[399843516,1766734340339,-332.98908398,0.00025,2]
[399843517,1766734340348,-166.42596613,0.00025,2]
[399843518,1766734340357,-1107.90812673,0.00025,2]
[399843519,1766734340367,-1775.31745851,0.00025,2]
[399843520,1766734340377,-360.0,0.00025,2]
[399843521,1766734340386,-607.68826498,0.00025,2]
[399843522,1766734340395,-3028.16620812,0.00025,2]